[Event "Titled Tuesday Blitz October 18 Late 2022"]
[White "Abdyzhapar, Asylbek"]
[Black "Svicevic, Rastko"]
[WhiteFideId "13800337"]
[BlackFideId "916315"]
[WhiteElo "2323"]
[BlackElo "2103"]
[Result "1-0"]
[Round "01"]
[TimeControl "180+1"]
[Date "2022.10.19"]
[WhiteClock "0:02:01"]
[BlackClock "0:01:47"]

1. e4 {[%clk 0:03:00]}  c6 {[%clk 0:03:00]} 2. d4 {[%clk 0:02:59]}  d5 {[%clk 0:03:01]} 3. exd5 {[%clk 0:02:59]}  cxd5 {[%clk 0:03:01]} 4. Bd3 {[%clk 0:02:58]}  Nc6 {[%clk 0:03:00]} 5. c3 {[%clk 0:02:58]}  e6 {[%clk 0:03:01]} 6. Bf4 {[%clk 0:02:56]}  Bd6 {[%clk 0:03:01]} 7. Bg3 {[%clk 0:02:57]}  Nge7 {[%clk 0:02:59]} 8. Nd2 {[%clk 0:02:56]}  O-O {[%clk 0:02:59]} 9. Ngf3 {[%clk 0:02:56]}  f6 {[%clk 0:02:59]} 10. O-O {[%clk 0:02:51]}  e5 {[%clk 0:02:57]} 11. dxe5 {[%clk 0:02:50]}  fxe5 {[%clk 0:02:58]} 12. Ng5 {[%clk 0:02:49]}  e4 {[%clk 0:02:55]} 13. Ndxe4 {[%clk 0:02:46]}  dxe4 {[%clk 0:02:49]} 14. Bc4+ {[%clk 0:02:46]}  Kh8 {[%clk 0:02:44]} 15. Bxd6 {[%clk 0:02:32]}  Bf5 {[%clk 0:02:41]} 16. Nf7+ {[%clk 0:02:28]}  Rxf7 {[%clk 0:02:41]} 17. Bxf7 {[%clk 0:02:28]}  Qb6 {[%clk 0:02:39]} 18. Bxe7 {[%clk 0:02:18]}  Nxe7 {[%clk 0:02:37]} 19. Bb3 {[%clk 0:02:17]}  Rd8 {[%clk 0:02:35]} 20. Qe2 {[%clk 0:02:17]}  Ng6 {[%clk 0:02:32]} 21. Rad1 {[%clk 0:02:14]}  Rf8 {[%clk 0:02:29]} 22. Qe3 {[%clk 0:02:12]}  Qc7 {[%clk 0:02:26]} 23. f4 {[%clk 0:02:11]}  exf3 {[%clk 0:02:07]} 24. Qxf3 {[%clk 0:02:10]}  h6 {[%clk 0:02:07]} 25. Qe3 {[%clk 0:02:06]}  Ne5 {[%clk 0:02:00]} 26. h3 {[%clk 0:02:01]}  Rf6 {[%clk 0:01:47]} 27. Rd5 {[%clk 0:02:01]} 1-0


[Site "https://www.chess.com"]

[Event "Titled Tuesday Blitz October 18 Late 2022"]
[White "Adewumi, Tanitoluwa"]
[Black "Harish, Neeraj"]
[WhiteFideId "30966396"]
[BlackFideId "30958130"]
[WhiteElo "2529"]
[BlackElo "1815"]
[Result "1-0"]
[Round "01"]
[TimeControl "180+1"]
[Date "2022.10.19"]
[WhiteClock "0:00:14"]
[BlackClock "0:00:17"]

1. e4 {[%clk 0:02:59]}  c5 {[%clk 0:02:58]} 2. Nf3 {[%clk 0:02:56]}  Nc6 {[%clk 0:02:54]} 3. Bb5 {[%clk 0:02:52]}  g6 {[%clk 0:02:52]} 4. Bxc6 {[%clk 0:02:45]}  dxc6 {[%clk 0:02:52]} 5. d3 {[%clk 0:02:46]}  Bg7 {[%clk 0:02:51]} 6. h3 {[%clk 0:02:44]}  Nf6 {[%clk 0:02:48]} 7. O-O {[%clk 0:02:28]}  Nd7 {[%clk 0:02:48]} 8. Re1 {[%clk 0:02:26]}  e5 {[%clk 0:02:47]} 9. Be3 {[%clk 0:02:25]}  O-O {[%clk 0:02:46]} 10. Nbd2 {[%clk 0:02:24]}  b6 {[%clk 0:02:42]} 11. a4 {[%clk 0:02:22]}  a5 {[%clk 0:02:41]} 12. Nc4 {[%clk 0:02:19]}  Re8 {[%clk 0:02:40]} 13. Ng5 {[%clk 0:02:14]}  h6 {[%clk 0:02:34]} 14. Nf3 {[%clk 0:01:55]}  Qc7 {[%clk 0:02:24]} 15. Qc1 {[%clk 0:01:48]}  Kh7 {[%clk 0:02:23]} 16. Nh2 {[%clk 0:01:40]}  Nf8 {[%clk 0:01:58]} 17. f4 {[%clk 0:01:35]}  exf4 {[%clk 0:01:54]} 18. Bxf4 {[%clk 0:01:36]}  Qd8 {[%clk 0:01:54]} 19. Rf1 {[%clk 0:01:29]}  Ne6 {[%clk 0:01:43]} 20. Bg3 {[%clk 0:01:08]}  Ra7 {[%clk 0:01:28]} 21. Nd6 {[%clk 0:00:59]}  Ree7 {[%clk 0:01:26]} 22. Ng4 {[%clk 0:00:52]}  Nd4 {[%clk 0:01:15]} 23. Qd1 {[%clk 0:00:50]}  Be6 {[%clk 0:00:38]} 24. c3 {[%clk 0:00:42]}  Bxg4 {[%clk 0:00:35]} 25. hxg4 {[%clk 0:00:25]}  Ne6 {[%clk 0:00:32]} 26. Nf5 {[%clk 0:00:22]}  Red7 {[%clk 0:00:26]} 27. Nxg7 {[%clk 0:00:20]}  Kxg7 {[%clk 0:00:27]} 28. Be5+ {[%clk 0:00:19]}  Kh7 {[%clk 0:00:25]} 29. Rf3 {[%clk 0:00:18]}  Ng5 {[%clk 0:00:22]} 30. Re3 {[%clk 0:00:18]}  Qe7 {[%clk 0:00:18]} 31. Bg3 {[%clk 0:00:18]}  Ra8 {[%clk 0:00:18]} 32. Qe2 {[%clk 0:00:18]}  Rad8 {[%clk 0:00:19]} 33. Rf1 {[%clk 0:00:18]}  Qe6 {[%clk 0:00:18]} 34. Bf4 {[%clk 0:00:17]}  Kg7 {[%clk 0:00:18]} 35. e5 {[%clk 0:00:15]}  Qd5 {[%clk 0:00:17]} 36. Bxg5 {[%clk 0:00:13]}  hxg5 {[%clk 0:00:17]} 37. e6 {[%clk 0:00:14]}  Qxe6 {[%clk 0:00:17]} 38. Rxe6 {[%clk 0:00:14]} 1-0


[Site "https://www.chess.com"]

[Event "Titled Tuesday Blitz October 18 Late 2022"]
[White "Al-Tarboush, Ward"]
[Black "Tarnowska, Aleksandra"]
[WhiteFideId "7601450"]
[BlackFideId "1180967"]
[WhiteElo "2269"]
[BlackElo "1776"]
[Result "1-0"]
[Round "01"]
[TimeControl "180+1"]
[Date "2022.10.19"]
[WhiteClock "0:00:43"]
[BlackClock "0:00:05"]

1. e4 {[%clk 0:02:48]}  c5 {[%clk 0:02:59]} 2. Nf3 {[%clk 0:02:47]}  e6 {[%clk 0:03:00]} 3. d4 {[%clk 0:02:46]}  cxd4 {[%clk 0:03:01]} 4. Nxd4 {[%clk 0:02:42]}  a6 {[%clk 0:03:01]} 5. Bd3 {[%clk 0:02:42]}  Bc5 {[%clk 0:03:00]} 6. Nb3 {[%clk 0:02:41]}  Be7 {[%clk 0:02:58]} 7. Qg4 {[%clk 0:02:35]}  g6 {[%clk 0:02:56]} 8. Qe2 {[%clk 0:02:31]}  d6 {[%clk 0:02:56]} 9. Be3 {[%clk 0:02:21]}  Nd7 {[%clk 0:02:55]} 10. Na3 {[%clk 0:02:16]}  Qc7 {[%clk 0:02:36]} 11. Nc4 {[%clk 0:01:44]}  b5 {[%clk 0:02:26]} 12. Ncd2 {[%clk 0:01:44]}  Bb7 {[%clk 0:02:17]} 13. a4 {[%clk 0:01:40]}  b4 {[%clk 0:02:07]} 14. a5 {[%clk 0:01:34]}  d5 {[%clk 0:01:59]} 15. O-O {[%clk 0:01:23]}  h5 {[%clk 0:01:47]} 16. exd5 {[%clk 0:01:08]}  Bxd5 {[%clk 0:01:47]} 17. Be4 {[%clk 0:01:05]}  Ngf6 {[%clk 0:01:39]} 18. Bf3 {[%clk 0:00:56]}  Ne5 {[%clk 0:01:14]} 19. Bxd5 {[%clk 0:00:53]}  Nxd5 {[%clk 0:01:10]} 20. Bd4 {[%clk 0:00:52]}  Ng4 {[%clk 0:01:00]} 21. Nf3 {[%clk 0:00:48]}  O-O {[%clk 0:00:34]} 22. h3 {[%clk 0:00:45]}  Ngf6 {[%clk 0:00:33]} 23. Ne5 {[%clk 0:00:45]}  Nh7 {[%clk 0:00:27]} 24. Nxg6 {[%clk 0:00:42]}  fxg6 {[%clk 0:00:18]} 25. Qxe6+ {[%clk 0:00:42]}  Rf7 {[%clk 0:00:16]} 26. Qxd5 {[%clk 0:00:43]}  Rd8 {[%clk 0:00:11]} 27. Qe4 {[%clk 0:00:43]}  Qd6 {[%clk 0:00:08]} 28. Be5 {[%clk 0:00:42]}  Qe6 {[%clk 0:00:07]} 29. Nd4 {[%clk 0:00:42]}  Qd5 {[%clk 0:00:06]} 30. Qxg6+ {[%clk 0:00:42]}  Kf8 {[%clk 0:00:06]} 31. Ne6+ {[%clk 0:00:42]}  Ke8 {[%clk 0:00:06]} 32. Nc7+ {[%clk 0:00:43]}  Kd7 {[%clk 0:00:05]} 33. Nxd5 {[%clk 0:00:43]} 1-0


[Site "https://www.chess.com"]

[Event "Titled Tuesday Blitz October 18 Late 2022"]
[White "Alexikov, Alexander"]
[Black "Jaracz, Pawel"]
[WhiteFideId "14103958"]
[BlackFideId "1102222"]
[WhiteElo "2222"]
[BlackElo "2459"]
[Result "0-1"]
[Round "01"]
[TimeControl "180+1"]
[Date "2022.10.19"]
[WhiteClock "0:00:51"]
[BlackClock "0:01:15"]

1. e4 {[%clk 0:03:00]}  e6 {[%clk 0:02:58]} 2. d4 {[%clk 0:02:59]}  d5 {[%clk 0:02:59]} 3. Nc3 {[%clk 0:02:59]}  Nf6 {[%clk 0:02:56]} 4. Bg5 {[%clk 0:02:56]}  Be7 {[%clk 0:02:53]} 5. e5 {[%clk 0:02:55]}  Nfd7 {[%clk 0:02:53]} 6. Bxe7 {[%clk 0:02:55]}  Qxe7 {[%clk 0:02:53]} 7. Nf3 {[%clk 0:02:50]}  a6 {[%clk 0:02:50]} 8. Qd2 {[%clk 0:02:49]}  c5 {[%clk 0:02:51]} 9. dxc5 {[%clk 0:02:48]}  Nc6 {[%clk 0:02:49]} 10. Qf4 {[%clk 0:02:44]}  Qxc5 {[%clk 0:02:39]} 11. Bd3 {[%clk 0:02:40]}  h6 {[%clk 0:02:37]} 12. O-O {[%clk 0:02:31]}  O-O {[%clk 0:02:33]} 13. a3 {[%clk 0:02:27]}  b5 {[%clk 0:02:31]} 14. Rfe1 {[%clk 0:02:21]}  Bb7 {[%clk 0:02:30]} 15. Rad1 {[%clk 0:02:19]}  b4 {[%clk 0:02:13]} 16. Nb1 {[%clk 0:01:46]}  a5 {[%clk 0:02:08]} 17. a4 {[%clk 0:01:35]}  Ba6 {[%clk 0:02:06]} 18. Nbd2 {[%clk 0:01:35]}  Qe7 {[%clk 0:01:54]} 19. Nb3 {[%clk 0:01:27]}  Nc5 {[%clk 0:01:42]} 20. Nbd4 {[%clk 0:01:20]}  Nxd4 {[%clk 0:01:41]} 21. Nxd4 {[%clk 0:01:20]}  Nxd3 {[%clk 0:01:38]} 22. cxd3 {[%clk 0:01:18]}  Rfc8 {[%clk 0:01:39]} 23. Re3 {[%clk 0:01:07]}  Qg5 {[%clk 0:01:38]} 24. Qf3 {[%clk 0:00:59]}  Rc7 {[%clk 0:01:34]} 25. Qh3 {[%clk 0:00:58]}  Rac8 {[%clk 0:01:31]} 26. Nxe6 {[%clk 0:00:52]}  Rc1 {[%clk 0:01:24]} 27. Ree1 {[%clk 0:00:52]}  Rxd1 {[%clk 0:01:23]} 28. Rxd1 {[%clk 0:00:51]}  Rc1 {[%clk 0:01:15]} 0-1


[Site "https://www.chess.com"]

[Event "Titled Tuesday Blitz October 18 Late 2022"]
[White "Barria Zuniga, Daniel"]
[Black "Lopez Del Alamo, Antonio"]
[WhiteFideId "3400816"]
[BlackFideId "2227339"]
[WhiteElo "2414"]
[BlackElo "2175"]
[Result "1-0"]
[Round "01"]
[TimeControl "180+1"]
[Date "2022.10.19"]
[WhiteClock "0:00:41"]
[BlackClock "0:00:11"]

1. d4 {[%clk 0:03:00]}  Nf6 {[%clk 0:02:59]} 2. c4 {[%clk 0:03:00]}  g6 {[%clk 0:02:59]} 3. Nc3 {[%clk 0:02:59]}  Bg7 {[%clk 0:02:59]} 4. e4 {[%clk 0:02:58]}  d6 {[%clk 0:02:59]} 5. Be2 {[%clk 0:02:58]}  O-O {[%clk 0:02:57]} 6. Nf3 {[%clk 0:02:59]}  Na6 {[%clk 0:02:56]} 7. Be3 {[%clk 0:02:55]}  e5 {[%clk 0:02:55]} 8. d5 {[%clk 0:02:54]}  Ng4 {[%clk 0:02:54]} 9. Bg5 {[%clk 0:02:54]}  f6 {[%clk 0:02:54]} 10. Bh4 {[%clk 0:02:53]}  g5 {[%clk 0:02:51]} 11. Bg3 {[%clk 0:02:53]}  Nh6 {[%clk 0:02:45]} 12. Nd2 {[%clk 0:02:52]}  Nc5 {[%clk 0:02:38]} 13. b4 {[%clk 0:02:51]}  Nd7 {[%clk 0:02:37]} 14. O-O {[%clk 0:02:43]}  f5 {[%clk 0:02:36]} 15. f3 {[%clk 0:02:43]}  f4 {[%clk 0:02:29]} 16. Bf2 {[%clk 0:02:44]}  Nf6 {[%clk 0:02:27]} 17. c5 {[%clk 0:02:36]}  g4 {[%clk 0:02:24]} 18. Kh1 {[%clk 0:02:25]}  g3 {[%clk 0:02:03]} 19. Bg1 {[%clk 0:02:08]}  Nh5 {[%clk 0:01:57]} 20. Nc4 {[%clk 0:01:58]}  Qh4 {[%clk 0:01:53]} 21. Bd3 {[%clk 0:01:52]}  Rf6 {[%clk 0:01:40]} 22. a4 {[%clk 0:01:47]}  Rg6 {[%clk 0:01:38]} 23. Ra2 {[%clk 0:01:45]}  gxh2 {[%clk 0:01:29]} 24. Bf2 {[%clk 0:01:41]}  Ng3+ {[%clk 0:01:27]} 25. Bxg3 {[%clk 0:01:40]}  Rxg3 {[%clk 0:01:25]} 26. cxd6 {[%clk 0:01:32]}  cxd6 {[%clk 0:01:24]} 27. Nxd6 {[%clk 0:01:31]}  Qg5 {[%clk 0:01:08]} 28. Nxc8 {[%clk 0:01:24]}  Rxc8 {[%clk 0:01:07]} 29. Nb5 {[%clk 0:01:24]}  Bf8 {[%clk 0:01:06]} 30. d6 {[%clk 0:01:19]}  a6 {[%clk 0:01:04]} 31. Nc7 {[%clk 0:01:16]}  Kh8 {[%clk 0:00:45]} 32. Ne6 {[%clk 0:01:11]}  Qg6 {[%clk 0:00:42]} 33. d7 {[%clk 0:01:10]}  Qxe6 {[%clk 0:00:22]} 34. dxc8=Q {[%clk 0:01:11]}  Qxc8 {[%clk 0:00:22]} 35. Rc2 {[%clk 0:01:11]}  Qe8 {[%clk 0:00:21]} 36. Qc1 {[%clk 0:01:09]}  Nf7 {[%clk 0:00:19]} 37. Rc8 {[%clk 0:01:08]}  Nd8 {[%clk 0:00:18]} 38. Bxa6 {[%clk 0:00:52]}  bxa6 {[%clk 0:00:16]} 39. Rd1 {[%clk 0:00:52]}  Be7 {[%clk 0:00:16]} 40. Qc7 {[%clk 0:00:46]}  Rxg2 {[%clk 0:00:15]} 41. Rdxd8 {[%clk 0:00:42]}  Bxd8 {[%clk 0:00:11]} 42. Rxd8 {[%clk 0:00:41]} 1-0


[Site "https://www.chess.com"]

[Event "Titled Tuesday Blitz October 18 Late 2022"]
[White "Baskakov, Egor"]
[Black "Zhukov, Maksim"]
[WhiteFideId "24197866"]
[BlackFideId "34181790"]
[WhiteElo "2211"]
[BlackElo "1929"]
[Result "1-0"]
[Round "01"]
[TimeControl "180+1"]
[Date "2022.10.19"]
[WhiteClock "0:01:41"]
[BlackClock "0:01:13"]

1. e4 {[%clk 0:03:00]}  d5 {[%clk 0:02:59]} 2. exd5 {[%clk 0:03:00]}  Nf6 {[%clk 0:02:59]} 3. Nf3 {[%clk 0:03:00]}  Nxd5 {[%clk 0:02:59]} 4. d4 {[%clk 0:03:00]}  Bg4 {[%clk 0:02:59]} 5. Be2 {[%clk 0:03:00]}  e6 {[%clk 0:02:59]} 6. O-O {[%clk 0:03:00]}  Be7 {[%clk 0:03:00]} 7. c4 {[%clk 0:03:00]}  Nb6 {[%clk 0:03:00]} 8. b3 {[%clk 0:03:01]}  O-O {[%clk 0:02:59]} 9. Be3 {[%clk 0:03:01]}  Nc6 {[%clk 0:02:59]} 10. Nc3 {[%clk 0:03:01]}  Qd7 {[%clk 0:02:59]} 11. Qd2 {[%clk 0:02:55]}  Bf5 {[%clk 0:02:59]} 12. Rad1 {[%clk 0:02:55]}  Bf6 {[%clk 0:02:58]} 13. d5 {[%clk 0:02:51]}  exd5 {[%clk 0:02:58]} 14. Nxd5 {[%clk 0:02:51]}  Nxd5 {[%clk 0:02:57]} 15. cxd5 {[%clk 0:02:51]}  Ne5 {[%clk 0:02:58]} 16. Nxe5 {[%clk 0:02:49]}  Bxe5 {[%clk 0:02:59]} 17. Bf4 {[%clk 0:02:47]}  Bxf4 {[%clk 0:02:59]} 18. Qxf4 {[%clk 0:02:48]}  Rad8 {[%clk 0:02:58]} 19. Bf3 {[%clk 0:02:46]}  Bg6 {[%clk 0:02:09]} 20. d6 {[%clk 0:02:34]}  cxd6 {[%clk 0:02:07]} 21. Rd4 {[%clk 0:02:32]}  Qc7 {[%clk 0:02:02]} 22. Rfd1 {[%clk 0:02:31]}  b6 {[%clk 0:01:47]} 23. h4 {[%clk 0:02:30]}  h6 {[%clk 0:01:47]} 24. h5 {[%clk 0:02:30]}  Bh7 {[%clk 0:01:46]} 25. Rxd6 {[%clk 0:02:30]}  Rxd6 {[%clk 0:01:46]} 26. Qxd6 {[%clk 0:02:28]}  Qc2 {[%clk 0:01:41]} 27. Rd2 {[%clk 0:02:28]}  Qc1+ {[%clk 0:01:40]} 28. Kh2 {[%clk 0:02:28]}  Re8 {[%clk 0:01:31]} 29. g3 {[%clk 0:02:23]}  Qe1 {[%clk 0:01:26]} 30. Qf4 {[%clk 0:02:11]}  Bb1 {[%clk 0:01:21]} 31. Bc6 {[%clk 0:01:59]}  Re2 {[%clk 0:01:17]} 32. Rxe2 {[%clk 0:01:49]}  Qxe2 {[%clk 0:01:18]} 33. g4 {[%clk 0:01:43]}  Qxa2 {[%clk 0:01:13]} 34. Bd5 {[%clk 0:01:41]} 1-0


[Site "https://www.chess.com"]

[Event "Titled Tuesday Blitz October 18 Late 2022"]
[White "Bellissimo, Joseph F."]
[Black "Burke, Paul"]
[WhiteFideId "2609843"]
[BlackFideId "2605767"]
[WhiteElo "2103"]
[BlackElo "1876"]
[Result "1-0"]
[Round "01"]
[TimeControl "180+1"]
[Date "2022.10.19"]
[WhiteClock "0:01:41"]
[BlackClock "0:00:12"]

1. e4 {[%clk 0:03:00]}  e5 {[%clk 0:02:58]} 2. Nf3 {[%clk 0:03:00]}  Nc6 {[%clk 0:02:58]} 3. Bc4 {[%clk 0:03:01]}  Be7 {[%clk 0:02:58]} 4. d4 {[%clk 0:03:00]}  exd4 {[%clk 0:02:57]} 5. Nxd4 {[%clk 0:03:01]}  d6 {[%clk 0:02:57]} 6. c3 {[%clk 0:02:59]}  Nf6 {[%clk 0:02:56]} 7. Nd2 {[%clk 0:02:57]}  O-O {[%clk 0:02:56]} 8. O-O {[%clk 0:02:57]}  Nxe4 {[%clk 0:02:48]} 9. Nxe4 {[%clk 0:02:55]}  d5 {[%clk 0:02:48]} 10. Bd3 {[%clk 0:02:54]}  dxe4 {[%clk 0:02:47]} 11. Bxe4 {[%clk 0:02:55]}  Nxd4 {[%clk 0:02:39]} 12. cxd4 {[%clk 0:02:56]}  Bf6 {[%clk 0:02:23]} 13. Be3 {[%clk 0:02:55]}  c6 {[%clk 0:02:13]} 14. Qd3 {[%clk 0:02:53]}  h6 {[%clk 0:02:12]} 15. Rad1 {[%clk 0:02:53]}  Be6 {[%clk 0:02:11]} 16. b3 {[%clk 0:02:52]}  Bd5 {[%clk 0:02:09]} 17. Bf5 {[%clk 0:02:51]}  g6 {[%clk 0:01:38]} 18. Bg4 {[%clk 0:02:37]}  Bg7 {[%clk 0:01:19]} 19. Bf4 {[%clk 0:02:30]}  f5 {[%clk 0:01:16]} 20. Bf3 {[%clk 0:02:24]}  Bxf3 {[%clk 0:01:14]} 21. Qxf3 {[%clk 0:02:25]}  Qa5 {[%clk 0:01:05]} 22. d5 {[%clk 0:02:18]}  cxd5 {[%clk 0:01:00]} 23. Rxd5 {[%clk 0:02:16]}  Qxa2 {[%clk 0:01:00]} 24. Rd7 {[%clk 0:02:16]}  g5 {[%clk 0:00:34]} 25. Qxb7 {[%clk 0:02:11]}  Qb2 {[%clk 0:00:26]} 26. Bc1 {[%clk 0:02:09]}  Qe5 {[%clk 0:00:21]} 27. Ba3 {[%clk 0:02:04]}  Rfd8 {[%clk 0:00:17]} 28. Rfd1 {[%clk 0:02:02]}  Rxd7 {[%clk 0:00:16]} 29. Qxd7 {[%clk 0:02:01]}  Re8 {[%clk 0:00:15]} 30. h3 {[%clk 0:01:54]}  Qe6 {[%clk 0:00:14]} 31. Qb7 {[%clk 0:01:48]}  Qe2 {[%clk 0:00:12]} 32. Qd5+ {[%clk 0:01:41]} 1-0


[Site "https://www.chess.com"]

[Event "Titled Tuesday Blitz October 18 Late 2022"]
[White "Bilych, Olexiy"]
[Black "Aguilar, Juan"]
[WhiteFideId "14156504"]
[BlackFideId "3800091"]
[WhiteElo "2320"]
[BlackElo "2439"]
[Result "1/2-1/2"]
[Round "01"]
[TimeControl "180+1"]
[Date "2022.10.19"]
[WhiteClock "0:00:02"]
[BlackClock "0:00:06"]

1. e4 {[%clk 0:02:59]}  c5 {[%clk 0:02:59]} 2. Nf3 {[%clk 0:02:59]}  d6 {[%clk 0:02:59]} 3. Bb5+ {[%clk 0:02:59]}  Bd7 {[%clk 0:02:59]} 4. Bxd7+ {[%clk 0:02:57]}  Qxd7 {[%clk 0:03:00]} 5. O-O {[%clk 0:02:58]}  Nc6 {[%clk 0:03:00]} 6. c3 {[%clk 0:02:57]}  Nf6 {[%clk 0:03:00]} 7. Re1 {[%clk 0:02:55]}  e6 {[%clk 0:03:00]} 8. d4 {[%clk 0:02:53]}  cxd4 {[%clk 0:03:01]} 9. cxd4 {[%clk 0:02:53]}  d5 {[%clk 0:03:01]} 10. e5 {[%clk 0:02:53]}  Ne4 {[%clk 0:03:02]} 11. Nbd2 {[%clk 0:02:53]}  Nxd2 {[%clk 0:03:02]} 12. Bxd2 {[%clk 0:02:53]}  Bb4 {[%clk 0:03:02]} 13. Rc1 {[%clk 0:02:51]}  Bxd2 {[%clk 0:03:00]} 14. Qxd2 {[%clk 0:02:48]}  O-O {[%clk 0:03:00]} 15. h4 {[%clk 0:02:45]}  Rfc8 {[%clk 0:02:55]} 16. h5 {[%clk 0:02:44]}  h6 {[%clk 0:02:54]} 17. Rc3 {[%clk 0:02:22]}  Ne7 {[%clk 0:02:53]} 18. Rec1 {[%clk 0:02:22]}  Rxc3 {[%clk 0:02:50]} 19. Rxc3 {[%clk 0:02:21]}  Rc8 {[%clk 0:02:47]} 20. Qc1 {[%clk 0:02:20]}  Rxc3 {[%clk 0:02:43]} 21. Qxc3 {[%clk 0:02:21]}  Qc6 {[%clk 0:02:29]} 22. Qxc6 {[%clk 0:02:10]}  Nxc6 {[%clk 0:02:27]} 23. Kf1 {[%clk 0:02:11]}  Kf8 {[%clk 0:02:23]} 24. Ke2 {[%clk 0:02:11]}  Ke7 {[%clk 0:02:23]} 25. g4 {[%clk 0:02:06]}  f6 {[%clk 0:02:03]} 26. exf6+ {[%clk 0:01:56]}  gxf6 {[%clk 0:02:01]} 27. Ke3 {[%clk 0:01:54]}  e5 {[%clk 0:01:51]} 28. dxe5 {[%clk 0:01:48]}  fxe5 {[%clk 0:01:52]} 29. Nh4 {[%clk 0:01:43]}  Kf6 {[%clk 0:01:35]} 30. f4 {[%clk 0:01:43]}  exf4+ {[%clk 0:01:29]} 31. Kxf4 {[%clk 0:01:42]}  Nb4 {[%clk 0:01:27]} 32. Nf5 {[%clk 0:01:13]}  Nd3+ {[%clk 0:01:26]} 33. Ke3 {[%clk 0:01:13]}  Nxb2 {[%clk 0:01:25]} 34. Nxh6 {[%clk 0:01:11]}  Kg5 {[%clk 0:00:50]} 35. Nf7+ {[%clk 0:01:11]}  Kf6 {[%clk 0:00:47]} 36. Nd8 {[%clk 0:01:11]}  Nc4+ {[%clk 0:00:36]} 37. Kd4 {[%clk 0:01:10]}  b5 {[%clk 0:00:31]} 38. h6 {[%clk 0:01:07]}  Kg6 {[%clk 0:00:30]} 39. g5 {[%clk 0:01:04]}  a5 {[%clk 0:00:23]} 40. Ne6 {[%clk 0:01:00]}  Nd6 {[%clk 0:00:16]} 41. Kxd5 {[%clk 0:00:48]}  Nf7 {[%clk 0:00:13]} 42. Kc5 {[%clk 0:00:46]}  Kf5 {[%clk 0:00:11]} 43. Kd5 {[%clk 0:00:44]}  b4 {[%clk 0:00:11]} 44. h7 {[%clk 0:00:38]}  a4 {[%clk 0:00:10]} 45. Kc4 {[%clk 0:00:13]}  b3 {[%clk 0:00:09]} 46. axb3 {[%clk 0:00:06]}  axb3 {[%clk 0:00:10]} 47. Kxb3 {[%clk 0:00:06]}  Kg6 {[%clk 0:00:10]} 48. Nf8+ {[%clk 0:00:03]}  Kxg5 {[%clk 0:00:09]} 49. Nd7 {[%clk 0:00:03]}  Kh6 {[%clk 0:00:06]} 50. Ne5 {[%clk 0:00:03]}  Nh8 {[%clk 0:00:06]} 51. Kc4 {[%clk 0:00:02]}  Kxh7 {[%clk 0:00:06]} 1/2-1/2


[Site "https://www.chess.com"]

[Event "Titled Tuesday Blitz October 18 Late 2022"]
[White "Bochnicka, Vladimir"]
[Black "Mikhailov, Viacheslav"]
[WhiteFideId "14943450"]
[BlackFideId "4187369"]
[WhiteElo "2239"]
[BlackElo "2381"]
[Result "0-1"]
[Round "01"]
[TimeControl "180+1"]
[Date "2022.10.19"]
[WhiteClock "0:00:24"]
[BlackClock "0:00:15"]

1. e4 {[%clk 0:02:58]}  d6 {[%clk 0:02:59]} 2. d4 {[%clk 0:02:57]}  Nf6 {[%clk 0:02:59]} 3. Nc3 {[%clk 0:02:58]}  g6 {[%clk 0:02:56]} 4. Be3 {[%clk 0:02:56]}  Bg7 {[%clk 0:02:56]} 5. h3 {[%clk 0:02:54]}  O-O {[%clk 0:02:54]} 6. Qd2 {[%clk 0:02:53]}  e5 {[%clk 0:02:51]} 7. Nf3 {[%clk 0:02:49]}  exd4 {[%clk 0:02:51]} 8. Nxd4 {[%clk 0:02:49]}  Nc6 {[%clk 0:02:49]} 9. O-O-O {[%clk 0:02:47]}  Re8 {[%clk 0:02:42]} 10. f3 {[%clk 0:02:46]}  d5 {[%clk 0:02:27]} 11. Bg5 {[%clk 0:02:35]}  Nxd4 {[%clk 0:02:21]} 12. Qxd4 {[%clk 0:02:24]}  Nxe4 {[%clk 0:01:47]} 13. Bxd8 {[%clk 0:01:26]}  Bxd4 {[%clk 0:01:47]} 14. Nxd5 {[%clk 0:01:09]}  Nf2 {[%clk 0:01:15]} 15. Rxd4 {[%clk 0:01:08]}  Re1+ {[%clk 0:00:35]} 16. Kd2 {[%clk 0:01:09]}  Rd1+ {[%clk 0:00:36]} 17. Ke3 {[%clk 0:01:08]}  Rxd4 {[%clk 0:00:36]} 18. Kxd4 {[%clk 0:01:08]}  Nxh1 {[%clk 0:00:37]} 19. Bh4 {[%clk 0:01:01]}  c6 {[%clk 0:00:26]} 20. Nf6+ {[%clk 0:00:48]}  Kg7 {[%clk 0:00:26]} 21. Ne8+ {[%clk 0:00:34]}  Kf8 {[%clk 0:00:25]} 22. Nd6 {[%clk 0:00:34]}  Be6 {[%clk 0:00:23]} 23. Nxb7 {[%clk 0:00:33]}  Rb8 {[%clk 0:00:20]} 24. Ba6 {[%clk 0:00:33]}  Bc8 {[%clk 0:00:17]} 25. Nc5 {[%clk 0:00:32]}  Bxa6 {[%clk 0:00:17]} 26. Nxa6 {[%clk 0:00:33]}  Rxb2 {[%clk 0:00:17]} 27. c4 {[%clk 0:00:23]}  Rxa2 {[%clk 0:00:17]} 28. Nb4 {[%clk 0:00:23]}  Rxg2 {[%clk 0:00:13]} 29. Nxc6 {[%clk 0:00:23]}  Ng3 {[%clk 0:00:14]} 30. Bxg3 {[%clk 0:00:20]}  Rxg3 {[%clk 0:00:15]} 31. Nxa7 {[%clk 0:00:21]}  Rxh3 {[%clk 0:00:15]} 32. c5 {[%clk 0:00:21]}  Ke7 {[%clk 0:00:12]} 33. Ke4 {[%clk 0:00:20]}  h5 {[%clk 0:00:11]} 34. c6 {[%clk 0:00:20]}  Kd6 {[%clk 0:00:11]} 35. Nb5+ {[%clk 0:00:20]}  Kxc6 {[%clk 0:00:11]} 36. Nd4+ {[%clk 0:00:21]}  Kd6 {[%clk 0:00:11]} 37. Ne2 {[%clk 0:00:21]}  Rh2 {[%clk 0:00:10]} 38. Nf4 {[%clk 0:00:21]}  Rh4 {[%clk 0:00:10]} 39. Ke3 {[%clk 0:00:21]}  Rxf4 {[%clk 0:00:10]} 40. Kxf4 {[%clk 0:00:22]}  f6 {[%clk 0:00:11]} 41. Ke4 {[%clk 0:00:21]}  Ke6 {[%clk 0:00:11]} 42. Kf4 {[%clk 0:00:22]}  g5+ {[%clk 0:00:11]} 43. Ke4 {[%clk 0:00:22]}  f5+ {[%clk 0:00:11]} 44. Ke3 {[%clk 0:00:22]}  Ke5 {[%clk 0:00:11]} 45. Kf2 {[%clk 0:00:22]}  Kf4 {[%clk 0:00:11]} 46. Kg2 {[%clk 0:00:23]}  h4 {[%clk 0:00:12]} 47. Kf2 {[%clk 0:00:21]}  h3 {[%clk 0:00:12]} 48. Kg1 {[%clk 0:00:18]}  Kxf3 {[%clk 0:00:13]} 49. Kh2 {[%clk 0:00:19]}  Kg4 {[%clk 0:00:13]} 50. Kg1 {[%clk 0:00:19]}  Kg3 {[%clk 0:00:14]} 51. Kh1 {[%clk 0:00:20]}  f4 {[%clk 0:00:14]} 52. Kg1 {[%clk 0:00:20]}  f3 {[%clk 0:00:15]} 53. Kf1 {[%clk 0:00:20]}  h2 {[%clk 0:00:14]} 54. Ke1 {[%clk 0:00:21]}  h1=Q+ {[%clk 0:00:14]} 55. Kd2 {[%clk 0:00:22]}  f2 {[%clk 0:00:15]} 56. Kc3 {[%clk 0:00:23]}  f1=Q {[%clk 0:00:15]} 57. Kb4 {[%clk 0:00:24]}  Qe4+ {[%clk 0:00:15]} 0-1


[Site "https://www.chess.com"]